Cogmind - Beta 13 @@@ ROGUE MODE // 2024.04.27 @ 19:56:03 Player: Zaros426 Result: Destroyed by D-53 Grenadier with Mini Grenade Launcher Performance ------------- Evolutions (0) 0 Regions Visited (4) 800 Robots Destroyed (17) 85 Value Destroyed (435) 435 Prototype IDs (1) 20 Alien Tech Used (0) 0 Bonus (0) 0 TOTAL SCORE: 1340 Bonus ------- None Cogmind --------- Core Integrity 0/250 Matter 262/300 Energy 100/100 System Corruption 0% Temperature Cool (56) Movement Core (400) Ox7 Location -9/Mines Parts ------- > --- POWER (1) -------- (None) > --- PROPULSION (2) --- (None) > --- UTILITY (2) ------ Large Storage Unit > --- WEAPON (2) ------- Medium Laser > --- INVENTORY (15) --- Light Treads Heat Sink Large Storage Unit High-capacity Battery (250) Improved Terrain Scanner Seismic Detector Targeting Computer Light Armor Plating Light Armor Plating Splice Drone Bay (6/6) Grenade Launcher Rocket Launcher Peak State ------------ > --- POWER ------------ Ion Engine > --- PROPULSION ------- Aluminum Leg Aluminum Leg > --- UTILITY ---------- Large Storage Unit Splice Drone Bay > --- WEAPON ----------- Medium Laser Assault Rifle > --- INVENTORY -------- Light Treads Heat Sink Large Storage Unit High-capacity Battery Improved Terrain Scanner Seismic Detector Targeting Computer Light Armor Plating Light Armor Plating Light Armor Plating Grenade Launcher Rocket Launcher [Rating: 14] Favorites ----------- Power Ion Engine Engine Ion Engine Propulsion Aluminum Leg Treads Light Treads Leg Aluminum Leg Utility Large Storage Unit Device Seismic Detector Storage Large Storage Unit Processor Signal Interpreter Protection Light Armor Plating Weapon Assault Rifle Energy Gun Medium Laser Ballistic Gun Assault Rifle Launcher Grenade Launcher Build | -11 -10 -10 -10 -9 ------- Run | Yrd Mat Min Exi Min Slots Evolved . | . . . . . Power . | . . . . . Propulsion . | . . . . . Utility . | . . . . . Weapon . | . . . . . Parts Attached 21 | 6 4 7 1 3 Power 1 | 1 . . . . Engine 1 | 1 . . . . Core . | . . . . . Reactor . | . . . . . Propulsion 4 | 2 . 2 . . Treads 2 | 2 . . . . Leg 2 | . . 2 . . Wheel . | . . . . . Hover . | . . . . . Flight . | . . . . . Utility 7 | 2 3 . . 2 Device 2 | 1 . . . 1 Storage 2 | 1 1 . . . Processor 1 | . 1 . . . Hackware . | . . . . . Protection 2 | . 1 . . 1 Artifact . | . . . . . Weapon 9 | 1 1 5 1 1 Energy Gun 4 | . 1 3 . . Energy Cannon . | . . . . . Ballistic Gun 3 | 1 . 1 . 1 Ballistic Cannon . | . . . . . Launcher 2 | . . 1 1 . Special Weapon . | . . . . . Impact Weapon . | . . . . . Slashing Weapon . | . . . . . Piercing Weapon . | . . . . . Special Melee Weapon . | . . . . . Unidentified Prototypes 1 | . . . . 1 Parts Lost 8 | . . 3 . 5 Power 1 | . . . . 1 Propulsion 4 | . . 2 . 2 Utility 1 | . . . . 1 Weapon 2 | . . 1 . 1 Highest Loss Streak 5 | . . 3 . 5 To Critical Strikes . | . . . . . Average Slot Usage (%) 99 | . 98 99 100 88 Engine 13 | . 14 14 14 11 Treads 7 | . 28 5 . . Leg 20 | . . 22 28 25 Storage 14 | . 14 14 14 14 Processor 11 | . . 14 14 8 Protection 2 | . 12 . . 2 Energy Gun 12 | . 12 11 14 14 Ballistic Gun 12 | . 14 14 9 2 Launcher 2 | . . 2 4 8 Naked Turns . | . . . . . Heaviest Build 32 | 13 32 31 30 30 Greatest Support 40 | 40 40 40 20 20 Greatest Overweight (x) 1 | . . 1 1 1 Average Overweight (x) . | . . . 1 1 Largest Inventory Capacity 15 | 8 15 15 15 15 Average Capacity 13 | 7 8 15 15 15 Most Carried 15 | 3 9 15 13 13 Average Carried 10 | 1 5 11 12 12 Final Capacity 15 | 8 15 15 15 15 Final Carried 13 | 3 8 12 13 12 Class Distribution -------------------- 100% | Mutant Dominant Class ---------------- Mutant | -10/Materials Mutant | -10/Mines Mutant | -10/Exiles Mutant | -9/Mines Resources | -11 -10 -10 -10 -9 ----------- Run | Yrd Mat Min Exi Min Matter Collected 605 | 247 177 132 . 49 Remotely . | . . . . . Salvage Created 544 | 71 311 122 . 40 Parts 47 | 12 25 10 . . Haulers Intercepted . | . . . . . Recyclers Shooed 2 | 1 . 1 . . Parts Field Recycled . | . . . . . Retrieved Matter . | . . . . . Parts Self-Destructed . | . . . . . Prevented . | . . . . . Kills | -11 -10 -10 -10 -9 ------- Run | Yrd Mat Min Exi Min Combat Hostiles Destroyed 10 | . 5 2 . 3 Guns 8 | . 5 2 . 1 AOE 2 | . . . . 2 Classes Destroyed 8 | 1 4 1 . 2 Worker 2 | . 1 1 . . Tunneler 5 | 4 1 . . . Operator 1 | . 1 . . . Watcher 1 | . 1 . . . Grunt 5 | . 5 . . . Sentry 2 | . . 2 . . Demolisher 1 | . . . . 1 Assembled 2 | . . . . 2 Best Kill Streak 3 | 2 3 2 . 3 Combat Bots Only 3 | . 2 2 . 3 Max Kills in Single Turn 2 | 1 1 1 . 2 Gunslinging . | . . . . . Exploded 2 | . . . . 2 Melee . | . . . . . Uniques/NPCs Destroyed . | . . . . . Combat | -11 -10 -10 -10 -9 -------- Run | Yrd Mat Min Exi Min Hostile Shots Fired 69 | . 30 24 . 15 Missed 9 | . 5 4 . . Damage Taken 1167 | . 315 328 . 524 Core 254 | . 33 86 . 135 Absorbed by Shields . | . . . . . Core Remaining (%) 100 | 100 . . . . Volleys Fired 79 | 21 32 14 4 8 Largest 2 | 1 2 2 1 2 Hottest 70 | 20 60 70 30 70 Shots Fired 120 | 21 64 19 4 12 Gun 114 | 21 64 19 . 10 Cannon . | . . . . . Launcher 6 | . . . 4 2 Special . | . . . . . Kinetic 71 | 21 32 14 . 4 Thermal 8 | . . 2 . 6 Explosive 6 | . . . 4 2 Electromagnetic 35 | . 32 3 . . Robot Hit Streak 12 | 7 12 10 . 3 Robot Miss Streak 2 | 2 2 1 . 2 Penetration Max . | . . . . . Secondary Targets 1 | . . . . 1 Max Gunslinging Chain 1 | . . . . 1 Shots Hit Robots 78 | 14 43 13 . 8 Core Hits 30 | 4 15 5 . 6 Critical Kills . | . . . . . Critical Parts Destroyed . | . . . . . Critical Strikes 1 | . 1 . . . Corrupt 1 | . 1 . . . Melee Attacks . | . . . . . Impact . | . . . . . Slashing . | . . . . . Piercing . | . . . . . Sneak Attacks . | . . . . . Combat Hostiles . | . . . . . Follow-up Attacks . | . . . . . Damage Inflicted 1172 | 185 621 213 . 153 Guns 1073 | 185 621 176 . 91 Cannons . | . . . . . Explosions 99 | . . 37 . 62 Melee . | . . . . . Ramming . | . . . . . Kinetic 648 | 185 284 139 . 40 Thermal 88 | . . 37 . 51 Explosive 62 | . . . . 62 Electromagnetic 374 | . 337 37 . . Impact . | . . . . . Slashing . | . . . . . Piercing . | . . . . . Highest Corruption . | . . . . . Average Corruption . | . . . . . Corruption Purged . | . . . . . Corruption Blocked . | . . . . . Overload Shots . | . . . . . Overflow Damage 36 | . . . . 36 Projectiles . | . . . . . Explosions 36 | . . . . 36 Melee . | . . . . . Knockbacks . | . . . . . Impact . | . . . . . Kinetic . | . . . . . Secondary . | . . . . . Self-Inflicted Damage 59 | . 16 31 . 12 Shots 3 | . 1 1 . 1 Rammed . | . . . . . Targets Rammed . | . . . . . Kicked . | . . . . . Crushed . | . . . . . Highest Temperature 153 | . 153 54 . 60 Average Temperature 42 | . 46 22 . 41 Received Heat Transfer 329 | . 174 135 . 20 Siege Activations . | . . . . . Robots Corrupted . | . . . . . Combat Hostiles . | . . . . . Parts Fried 3 | . 3 . . . Impact Corruptions . | . . . . . Robots Melted . | . . . . . Combat Hostiles . | . . . . . Parts Melted . | . . . . . Heat Transferred 148 | . . . . 148 Parts Sabotaged . | . . . . . Parts Stolen . | . . . . . Parts Stripped . | . . . . . Power Chain Reactions 1 | . . 1 . . Alert | -11 -10 -10 -10 -9 ------- Run | Yrd Mat Min Exi Min Peak Influence 168 | 20 168 67 . 30 Initial 31 | . 13 31 . . Average 25 | 8 53 16 . 4 Maximum Alert Level . | . . . . . Low Security (%) 100 | 100 100 100 . 100 Level 1 . | . . . . . Level 2 . | . . . . . Level 3 . | . . . . . Level 4 . | . . . . . Level 5 . | . . . . . High Security . | . . . . . Max Security . | . . . . . Squads Dispatched 2 | . 2 . . . Investigation . | . . . . . Extermination . | . . . . . Reinforcement 2 | . 2 . . . Assault . | . . . . . Garrison . | . . . . . Intercept . | . . . . . Searches Triggered . | . . . . . Construction Impeded . | . . . . . Haulers Reinforced . | . . . . . Active Scanning Responses . | . . . . . Cargo Convoy Interrupts . | . . . . . Stealth | -11 -10 -10 -10 -9 --------- Run | Yrd Mat Min Exi Min Distress Signals 2 | . 2 . . . Communications Jammed . | . . . . . Distress Signals . | . . . . . Times Spotted 22 | . 15 2 . 5 Peak Tracking Total 4 | . 4 2 . 4 Tactical Retreats . | . . . . . Traps | -11 -10 -10 -10 -9 ------- Run | Yrd Mat Min Exi Min Traps Triggered . | . . . . . Indirectly . | . . . . . Trap Hack Attempts . | . . . . . Triggered . | . . . . . Disarmed . | . . . . . Reprogrammed . | . . . . . Reused . | . . . . . Traps Extracted . | . . . . . Installed . | . . . . . Triggered . | . . . . . Machines | -11 -10 -10 -10 -9 ---------- Run | Yrd Mat Min Exi Min Machines Disabled 6 | . 5 . 1 . Max in Single Turn 1 | . 1 . 1 . Machines Repaired . | . . . . . Machines Dismantled . | . . . . . Machines Sabotaged . | . . . . . Overloaded Fab Kills . | . . . . . Hacking | -11 -10 -10 -10 -9 --------- Run | Yrd Mat Min Exi Min Machines Accessed 6 | . 3 1 2 . Terminals 3 | . 3 . . . Fabricators . | . . . . . Repair Stations . | . . . . . Recycling Units . | . . . . . Scanalyzers . | . . . . . Garrison Access . | . . . . . Total Hacks 11 | . 8 1 2 . Successful 8 | . 5 1 2 . Failed 2 | . 2 . . . Catastrophic . | . . . . . Database Lockouts 1 | . 1 . . . Manual 5 | . 5 . . . Terminals 8 | . 8 . . . Fabricators . | . . . . . Repair Stations . | . . . . . Recycling Units . | . . . . . Scanalyzers . | . . . . . Garrison Access . | . . . . . Terminal Hacks 7 | . 4 1 2 . Record 2 | . . . 2 . Robot Analysis 1 | . 1 . . . Open Door 1 | . . 1 . . Alert Level 1 | . 1 . . . Patrol Status 1 | . 1 . . . Zone Layout 1 | . 1 . . . Fabricator Hacks . | . . . . . Repair Station Hacks . | . . . . . Recycling Unit Hacks . | . . . . . Scanalyzer . | . . . . . Garrison Access Hacks . | . . . . . Unauthorized Hacks 1 | . 1 . . . Terminals 1 | . 1 . . . Botnet 1 | . 1 . . . Fabricators . | . . . . . Repair Stations . | . . . . . Recycling Units . | . . . . . Scanalyzers . | . . . . . Garrison Access . | . . . . . Data Cores Recovered 1 | . 1 . . . Used . | . . . . . Hacking Detections 2 | . 2 . . . Full Trace Events . | . . . . . Feedback Events . | . . . . . Feedback Blocked . | . . . . . Robot Schematics Acquired . | . . . . . Robots Built . | . . . . . Authchips . | . . . . . Time . | . . . . . Total Robot Build Rating . | . . . . . Part Schematics Acquired . | . . . . . Parts Built . | . . . . . Authchips . | . . . . . Time . | . . . . . Total Part Build Rating . | . . . . . Parts Repaired . | . . . . . Time . | . . . . . Parts Recycled . | . . . . . Recycled Matter . | . . . . . Retrieved Matter . | . . . . . Retrieved Components . | . . . . . Parts Scanalyzed . | . . . . . Part Schematics Acquired . | . . . . . Parts Damaged . | . . . . . Bothacking | -11 -10 -10 -10 -9 ------------ Run | Yrd Mat Min Exi Min Used RIF Installer . | . . . . . Robots Hacked . | . . . . . Non-combat . | . . . . . Combat . | . . . . . Robot Hacks Applied . | . . . . . Relay Couplers Released . | . . . . . Fabnet Peak Effective % . | . . . . . Robots Rewired . | . . . . . Allies Hacked . | . . . . . Hacks Repelled . | . . . . . Allies | -11 -10 -10 -10 -9 -------- Run | Yrd Mat Min Exi Min Total Allies . | . . . . . Largest Group . | . . . . . Highest-Rated Group . | . . . . . Highest-Rated Ally . | . . . . . Total Orders . | . . . . . Ally Attacks . | . . . . . Total Damage . | . . . . . Kills . | . . . . . Allies Corrupted . | . . . . . Allies Melted 1 | . . . . 1 Intel | -11 -10 -10 -10 -9 ------- Run | Yrd Mat Min Exi Min Robot Analysis Total 1 | . 1 . . . Derelict Logs Recovered 3 | . . 3 . . Drone Launches . | . . . . . Drone Recoveries . | . . . . . Exploration | -11 -10 -10 -10 -9 ------------- Run | Yrd Mat Min Exi Min Turns Passed 3040 | 191 540 1254 1009 46 Spaces Moved 1532 | 88 254 653 526 11 Core 2 | 2 . . . . Treads 470 | 86 254 130 . . Legs 1060 | . . 523 526 11 Wheels . | . . . . . Hover . | . . . . . Flight . | . . . . . Fastest Speed 50 | 50 160 160 190 190 Average Speed 180 | 157 160 184 190 190 Slowest Speed 190 | 160 160 190 190 190 Overloaded Moves . | . . . . . Propulsion Burnouts . | . . . . . Robots Hopped . | . . . . . Cave-ins Triggered . | . . . . . Exploration Rate (%) 51 | 5 55 99 94 6 Regions Visited 4 Branch Regions 3 Pre-discovered Areas . | . . . . . Known Exits Taken 3 | . 1 1 1 . Unknown Exits Taken 1 | 1 . . . . Scrap Searched 2 | . . 1 . 1 Spaces Dug 5 | . . . 5 . Terrain Destroyed 62 | . . 6 44 12 Melee . | . . . . . Projectile . | . . . . . AOE 62 | . . 6 44 12 Terrain Rammed . | . . . . . Walls Destroyed . | . . . . . Machines Disabled . | . . . . . Actions | -11 -10 -10 -10 -9 --------- Run | Yrd Mat Min Exi Min Total 1679 | 117 322 687 531 22 Wait 27 | . 27 . . . Move 1528 | 87 253 652 525 11 Hop . | . . . . . Pick Up 19 | 3 5 10 1 . Fast Attach 8 | 6 1 1 . . Attach 4 | . . 4 . . Detach . | . . . . . Swap 9 | . 3 2 1 3 Drop 5 | . 1 4 . . Fire 79 | 21 32 14 4 8 Melee . | . . . . . Ram . | . . . . . Kick . | . . . . . Crush . | . . . . . Escape Stasis . | . . . . . Rewire . | . . . . . Trap . | . . . . . Miscellaneous . | . . . . . Route ------- -11/Scrapyard -10/Materials (discovered 3 exits: *Mat / *Min x2) -10/Mines (discovered 4 exits: *Mat x2 / *Exi / *Sub) -10/Exiles (discovered 2 exits: *Min x2) -9/Mines History --------- Turn | Location | Event 2 | -11/Scrapyard | Met Revision 17 31 | -11/Scrapyard | Discovered new exit (range 16) 192 | -11/Scrapyard | Entered Materials 314 | -10/Materials | Build established: Mutant 333 | -10/Materials | Central database locked down 440 | -10/Materials | Discovered new exit (range 16) 498 | -10/Materials | Discovered new exit (range 13) 661 | -10/Materials | Discovered new exit (range 8) 731 | -10/Materials | Identified exit to Mines 732 | -10/Materials | Entered Mines 771 | -10/Mines | Received a Rocket Launcher from a helpful Derelict 846 | -10/Mines | Found the Drone Emporium 854 | -10/Mines | Found Prototype Device 905 | -10/Mines | Identified exit to Exiles 995 | -10/Mines | Lost 3 parts (2n1w) 1239 | -10/Mines | Deemed a non-threat by the Exiles lab entrance 1355 | -10/Mines | A weapon hastily lodged in a ceiling crevice suddenly fell to the ground 1585 | -10/Mines | Discovered new exit (range 9) 1598 | -10/Mines | Identified exit to Materials 1619 | -10/Mines | Discovered new exit (range 6) 1629 | -10/Mines | Identified exit to Subcaves 1851 | -10/Mines | Discovered exit to Materials (range 11) 1986 | -10/Mines | Entered Exiles 1986 | -10/Exiles | Found Exiles lab abandoned 2017 | -10/Exiles | Discovered new exit (range 15) 2974 | -10/Exiles | Discovered new exit (range 14) 2993 | -10/Exiles | Identified exit to Mines 2995 | -10/Exiles | Entered Mines 2996 | -9/Mines | Assembled infested the area 3001 | -9/Mines | Assisted by a Guerilla fighting off Assembled 3011 | -9/Mines | Core integrity fell below 50% 3022 | -9/Mines | Identified Splice Drone Bay 3027 | -9/Mines | Core integrity fell below 20% 3041 | -9/Mines | Destroyed by D-53 Grenadier with Mini Grenade Launcher Last Messages --------------- 03009_ as-58008 destroyed. 03009_ ZU-CO4(h) critical meltdown. 03013_ as-36334 destroyed. 03013_ Destroyed Asb. F-torch. 03013_ as-42638 destroyed. 03015_ as-69290 destroyed. 03022_ The unstable cave ceiling collapses. 03022_ Discarded Signal Interpreter. 03022_ Identified Splice Drone Bay. 03024_ R-06 Scavenger collects Adv. Heat Sink. 03029_ The unstable cave ceiling collapses. 03030_ Aluminum Leg destroyed. 03031_ D-53 Grenadier destroyed. 03031_ Switching to secondary target: D-53 Grenadier. 03035_ The unstable cave ceiling collapses. 03035_ Ion Engine destroyed. 03035_ Lgt. Armor Plating destroyed. 03035_ Assault Rifle destroyed. 03038_ The unstable cave ceiling collapses. 03041_ Aluminum Leg destroyed. Map ----- +----------------------------------------------------+ | ?????????????????????????????????????????? | | ?????????????????????????????????????????? | | ?????????????????????????????????????????? | | ?????????????????????????????????????????? | | ?????????????????????????????????????????? | | ?????????????????????????????????????????? | | ?????????????????????????????????????????? | | ?????????????????????????????????????????? | | ?????????????????????????????????????????? | | ?????????????????????????????????????????? | | ?????????????????????????????????????????? | | ?????????????????????????????????????????? | | ?????????????????????????????????????????? | | ?????????????????????????????????????????? | | ?????????????????????????????????????????? | | ?????????????????????????????????????????? | | ????????????????????????????? ???????????? | | ???????????????????#######?? ???????????? | | ??????????????????? ## ??????????? | | ????????????????### ## ??????????? | | ??????????????### # ??????????? | | ?????????????## % %d ?????????? | | ????????????## %% # ?????????? | | ????????????# % #?????????? | | ????????????# r ????????????? | | ????????????# @ #??????????????????? | | ????????????# #??????????????????? | | ????????????# #??????????????????? | | ?????# ####### ##??????????????????? | | ?????# ##???????????????????? | | ???????# ## ## #????????????????????? | | ??????????#??## ! #????????????????????? | | ??????????????## ! #????????????????????? | | ???????????????## ##????????????????????? | | ????????????????####?????????????????????? | | ?????????????????????????????????????????? | | ?????????????????????????????????????????? | | ?????????????????????????????????????????? | | ?????????????????????????????????????????? | | ?????????????????????????????????????????? | | ?????????????????????????????????????????? | | ?????????????????????????????????????????? | | ?????????????????????????????????????????? | | ?????????????????????????????????????????? | | ?????????????????????????????????????????? | | ?????????????????????????????????????????? | | ?????????????????????????????????????????? | | ?????????????????????????????????????????? | | ?????????????????????????????????????????? | | ?????????????????????????????????????????? | +----------------------------------------------------+ Best States ------------- Heat Dissipation 25 Energy Generation 10 Energy Capacity 250 Matter Stores 300 Matter Capacity 300 Sight Range 16 Terrain Scan Density 10 Armor Coverage 150 Evasion (%) 40 Recoil Reduction 2 Item Schematics ----------------- None Robot Schematics ------------------ None Fabricated ------------ Nothing Alien Tech Used ----------------- None Achievements -------------- None Challenges ------------ None Game ------ Seed UltimateSpacefoldBuckler Manual? 0 Play Time 00:12:58 Cumulative 72.3 hours Start 2024.04.27 @ 19:43:23 End 2024.04.27 @ 19:56:03 Sessions 1 Manual Loads 0 Difficulty Rogue Special Mode None Game No. 82 Rogue 82 Adventurer 0 Explorer 0 Win Type - Total 0 Types 0/0/0/0/0/0/0/0/0 Lore% 36 Gallery% 51 Achievement% 37 Wizard Run 0 Options --------- Layout 0 ASCII 0 Keyboard 0 Movement Mouse Keybinds 0 Fullscreen 2 Font 24/Smallcaps Map View 183x50 Zoom Use 0% Tactical HUD 1 Map Filters NONE Filters NONE Steam 0 RUN: 7709e17d-3c30-4177-bfa7-4eeaa919fbc0